fUSD/lending_fUSD_20260627
["ID","MTS","AMOUNT","RATE_DAILY","PERIOD"]
[426514619,1782507045000,-1228.24,0.00037099,7]
[426514617,1782507045000,-1228.24,0.00037099,7]
[426514624,1782507045000,-1228.24,0.00037099,7]
[426514658,1782507046000,-154.9850553,0.00035508,7]
[426514661,1782507046000,-337.655108,0.000371,120]
[426514654,1782507046000,-231.48,0.00035388,7]
[426514653,1782507046000,-231.48,0.00035349,2]
[426514655,1782507046000,-48.2850525,0.00035428,30]
[426514660,1782507046000,-2519.08031596,0.000371,120]
[426514657,1782507046000,-231.48,0.00035468,2]
[426514656,1782507046000,-183.1949475,0.00035428,30]
[426514672,1782507046000,-110.36500003,0.00035746,7]
[426514662,1782507046000,-7763.90358498,0.000371,120]
[426514663,1782507046000,-231.48,0.00035547,30]
[426514664,1782507046000,-648.33550006,0.000371,120]
[426514668,1782507046000,-231.48,0.00035627,7]
[426514667,1782507046000,-231.48,0.00035587,2]
[426514669,1782507046000,-159.42500003,0.00035667,30]
[426514670,1782507046000,-72.05499997,0.00035667,30]
[426514671,1782507046000,-231.48,0.00035706,2]
[426514659,1782507046000,-76.4949447,0.00035508,7]
[426514676,1782507047000,-231.48,0.00035866,7]
[426514675,1782507047000,-231.48,0.00035826,2]
[426514673,1782507047000,-121.11499997,0.00035746,7]
[426514678,1782507047000,-231.48,0.00035945,2]
[426514680,1782507047000,-545.0,0.000371,120]
[426514677,1782507047000,-231.48,0.00035905,30]
[426514679,1782507047000,-5991.71198012,0.000371,120]
[426514674,1782507047000,-231.48,0.00035786,30]
[426514681,1782507047000,-4998.29109635,0.000371,120]
[426514685,1782507066000,300.0,0.00027124,120]
[426514686,1782507067000,539.55184856,0.00027124,120]
[426514688,1782507123000,1000.0,0.00037221,120]
[426514689,1782507176000,1590.0,0.00037221,120]
[426514690,1782507179000,1582.32,0.00037221,120]
[426514691,1782507181000,1000.0,0.00037221,120]
[426514692,1782507213000,314941.8313,0.00028909,120]
[426514694,1782507294000,531.15,0.00029594,120]
[426514703,1782507523000,161.0,0.00037227,120]
[426514711,1782508074000,167.32,0.00010298,2]
[426514713,1782508089000,150.0,0.00012872,120]
[426514742,1782508231000,-6082.60735747,0.00013,5]
[426514740,1782508231000,-1254.49,0.00012968,2]
[426514741,1782508231000,-166.66,0.00012971,2]
[426514743,1782508231000,-334.22,0.00013,2]
[426514749,1782508231000,-2953.57,0.00013434,2]
[426514724,1782508231000,-500.0,0.0001235,2]
[426514750,1782508231000,-166.66,0.00013495,2]
[426514746,1782508231000,-166.66,0.00013233,2]
[426514744,1782508231000,-542.05242599,0.00013021,2]
[426514736,1782508231000,-177.91,0.00012898,2]
[426514745,1782508231000,-655.45,0.00013218,2]
[426514739,1782508231000,-160.0,0.00012966,2]
[426514730,1782508231000,-150.0,0.00012719,2]
[426514738,1782508231000,-161.82,0.0001294,2]
[426514735,1782508231000,-6143.67,0.00012872,2]
[426514734,1782508231000,-150.0,0.00012872,2]
[426514731,1782508231000,-316.01831472,0.00012743,2]
[426514732,1782508231000,-150.0,0.00012843,2]
[426514729,1782508231000,-166.66,0.00012709,2]
[426514727,1782508231000,-150.0,0.00012472,2]
[426514728,1782508231000,-150.0,0.00012596,2]
[426514726,1782508231000,-166.66,0.00012447,2]
[426514725,1782508231000,-150.0,0.00012372,2]
[426514723,1782508231000,-334.22,0.0001235,2]
[426514737,1782508231000,-894.21,0.00012913,2]
[426514747,1782508231000,-686.31,0.00013296,2]
[426514733,1782508231000,-150.0,0.00012845,2]
[426514752,1782508231000,-655.45,0.00013549,2]
[426514751,1782508231000,-150.0,0.00013495,2]
[426514783,1782508231000,-292.15590335,0.00014908,2]
[426514780,1782508231000,-1185.9061589,0.00014895,2]
[426514782,1782508231000,-192.77350889,0.000149,2]
[426514781,1782508231000,-11008.74666292,0.000149,2]
[426514778,1782508231000,-316.01831472,0.000148,2]
[426514775,1782508231000,-255.0,0.00014615,2]
[426514776,1782508231000,-191.00369546,0.000148,2]
[426514773,1782508231000,-1242.92727752,0.000144,2]
[426514774,1782508231000,-655.45,0.0001454,2]
[426514772,1782508231000,-10500.91538442,0.0001439,2]
[426514770,1782508231000,-655.45,0.00014209,2]
[426514771,1782508231000,-418.04404393,0.0001435,2]
[426514748,1782508231000,-1903.26,0.00013342,2]
[426514765,1782508231000,-1500.0,0.00014,2]
[426514768,1782508231000,-310.41,0.0001406,2]
[426514755,1782508231000,-500.0,0.00013585,2]
[426514756,1782508231000,-269.73336981,0.00013585,2]
[426514758,1782508231000,-334.22,0.0001365,2]
[426514757,1782508231000,-250.0,0.00013585,2]
[426514753,1782508231000,-206.19,0.00013568,2]
[426514762,1782508231000,-316.01831472,0.00013772,2]
[426514763,1782508231000,-192.38,0.0001384,2]
[426514764,1782508231000,-655.45,0.00013879,2]
[426514766,1782508231000,-250.0,0.00014,2]
[426514760,1782508231000,-166.66,0.00013757,2]
[426514754,1782508231000,-263.92833634,0.00013585,2]
[426514821,1782508232000,-500.0,0.00014993,2]
[426514809,1782508232000,-500.0,0.00014993,2]
[426514810,1782508232000,-500.0,0.00014993,2]
[426514808,1782508232000,-500.0,0.00014993,2]
[426514814,1782508232000,-500.0,0.00014993,2]
[426514811,1782508232000,-500.0,0.00014993,2]
[426514813,1782508232000,-500.0,0.00014993,2]
[426514812,1782508232000,-500.0,0.00014993,2]
[426514815,1782508232000,-500.0,0.00014993,2]
[426514820,1782508232000,-500.0,0.00014993,2]
[426514816,1782508232000,-500.0,0.00014993,2]
[426514817,1782508232000,-500.0,0.00014993,2]
[426514819,1782508232000,-500.0,0.00014993,2]
[426514806,1782508232000,-500.0,0.00014993,2]
[426514822,1782508232000,-500.0,0.00014993,2]
[426514823,1782508232000,-500.0,0.00014993,2]
[426514824,1782508232000,-387.73763532,0.00014993,2]
[426514827,1782508232000,-500.0,0.00014993,2]
[426514818,1782508232000,-500.0,0.00014993,2]
[426514802,1782508232000,-500.0,0.00014993,2]
[426514801,1782508232000,-500.0,0.00014993,2]
[426514804,1782508232000,-500.0,0.00014993,2]
[426514784,1782508232000,-182.20233248,0.00014945,2]
[426514786,1782508232000,-4283.67137173,0.00014947,2]
[426514785,1782508232000,-695.68990909,0.00014947,2]
[426514788,1782508232000,-121231.94057473,0.00014989,2]
[426514787,1782508232000,-5818.02365502,0.00014988,2]
[426514789,1782508232000,-500.0,0.00014993,2]
[426514790,1782508232000,-500.0,0.00014993,2]
[426514791,1782508232000,-419.07870563,0.00014993,2]
[426514796,1782508232000,-500.0,0.00014993,2]
[426514807,1782508232000,-500.0,0.00014993,2]
[426514794,1782508232000,-500.0,0.00014993,2]
[426514792,1782508232000,-601.12573903,0.00014993,2]
[426514793,1782508232000,-500.0,0.00014993,2]
[426514797,1782508232000,-500.0,0.00014993,2]
[426514799,1782508232000,-500.0,0.00014993,2]
[426514798,1782508232000,-500.0,0.00014993,2]
[426514800,1782508232000,-500.0,0.00014993,2]
[426514826,1782508232000,-500.0,0.00014993,2]
[426514805,1782508232000,-500.0,0.00014993,2]
[426514803,1782508232000,-500.0,0.00014993,2]
[426514795,1782508232000,-500.0,0.00014993,2]
[426514825,1782508232000,-500.0,0.00014993,2]
[426514833,1782508232000,-500.0,0.00014993,2]
[426514829,1782508232000,-500.0,0.00014993,2]
[426514853,1782508232000,-500.0,0.00014993,2]
[426514857,1782508232000,-382.83136803,0.00014999,2]
[426514856,1782508232000,-500.0,0.00014999,2]
[426514859,1782508232000,-609.51495557,0.00014999,2]
[426514863,1782508232000,-500.0,0.00014999,2]
[426514861,1782508232000,-159.96379246,0.00014999,2]
[426514860,1782508232000,-500.0,0.00014999,2]
[426514862,1782508232000,-500.0,0.00014999,2]
[426514828,1782508232000,-500.0,0.00014993,2]
[426514858,1782508232000,-500.0,0.00014999,2]
[426514867,1782508232000,-110969.90857206,0.00015,2]
[426514865,1782508232000,-52423.05638005,0.00015,2]
[426514868,1782508232000,-358.21679173,0.00015,2]
[426514866,1782508232000,-26275.65754145,0.00015,2]
[426514870,1782508232000,-5659.2071,0.00015,2]
[426514869,1782508232000,-2606.33997756,0.00015,2]
[426514871,1782508232000,-1035.46675279,0.00015,2]
[426514872,1782508232000,-3573.00465937,0.00015,2]
[426514864,1782508232000,-57335.92661246,0.00015,2]
[426514854,1782508232000,-500.0,0.00014999,2]
[426514855,1782508232000,-383.08412992,0.00014999,2]
[426514843,1782508232000,-500.0,0.00014993,2]
[426514830,1782508232000,-500.0,0.00014993,2]
[426514831,1782508232000,-500.0,0.00014993,2]
[426514834,1782508232000,-500.0,0.00014993,2]
[426514832,1782508232000,-500.0,0.00014993,2]
[426514835,1782508232000,-500.0,0.00014993,2]
[426514836,1782508232000,-500.0,0.00014993,2]
[426514837,1782508232000,-500.0,0.00014993,2]
[426514852,1782508232000,-500.0,0.00014993,2]
[426514838,1782508232000,-500.0,0.00014993,2]
[426514840,1782508232000,-500.0,0.00014993,2]
[426514842,1782508232000,-500.0,0.00014993,2]
[426514846,1782508232000,-350.0,0.00014993,2]
[426514844,1782508232000,-500.0,0.00014993,2]
[426514847,1782508232000,-500.0,0.00014993,2]
[426514845,1782508232000,-500.0,0.00014993,2]
[426514848,1782508232000,-500.0,0.00014993,2]
[426514850,1782508232000,-500.0,0.00014993,2]
[426514851,1782508232000,-500.0,0.00014993,2]
[426514849,1782508232000,-500.0,0.00014993,2]
[426514839,1782508232000,-500.0,0.00014993,2]
[426514841,1782508232000,-500.0,0.00014993,2]
[426514911,1782508237000,-776.0,0.00015,2]
[426514913,1782508237000,-5644.37444466,0.00015,2]
[426514912,1782508237000,-586.89278139,0.00015,2]
[426514936,1782508239000,-18623.19479752,0.00015,2]
[426514937,1782508239000,-6537.32029944,0.00015,2]
[426515031,1782508240000,-500.0,0.00028298,20]
[426514966,1782508240000,-2476.75180422,0.000213,2]
[426514967,1782508240000,-2476.75180422,0.000215,2]
[426514962,1782508240000,-158.0,0.00021,2]
[426514965,1782508240000,-695.68990907,0.00021281,2]
[426514968,1782508240000,-2476.75180422,0.000217,2]
[426514974,1782508240000,-2476.75180422,0.000221,2]
[426514969,1782508240000,-2476.75180422,0.000219,2]
[426514973,1782508240000,-204.0,0.00022,2]
[426514970,1782508240000,-5000.0,0.00021918,2]
[426514972,1782508240000,-158.0,0.00022,2]
[426514971,1782508240000,-271.0,0.00022,2]
[426514975,1782508240000,-1185.90615883,0.00022263,2]
[426514976,1782508240000,-182.20233248,0.00022335,2]
[426514977,1782508240000,-2476.75180422,0.000224,2]
[426514979,1782508240000,-2476.75180422,0.000228,2]
[426514978,1782508240000,-2476.75180422,0.000226,2]
[426514980,1782508240000,-271.0,0.00023,2]
[426514982,1782508240000,-204.0,0.00023,2]
[426514981,1782508240000,-158.0,0.00023,2]
[426514983,1782508240000,-2476.75180422,0.00023,2]
[426514964,1782508240000,-204.0,0.00021,2]
[426514956,1782508240000,-720.8,0.00020075,2]
[426514957,1782508240000,-151.0,0.00020675,2]
[426514961,1782508240000,-271.0,0.00021,2]
[426514938,1782508240000,-510551.30713006,0.00015,2]
[426514940,1782508240000,-161.82,0.00015097,2]
[426514939,1782508240000,-177.91,0.00015047,2]
[426514941,1782508240000,-500.0,0.00015273,2]
[426514942,1782508240000,-436.38,0.000153,2]
[426514943,1782508240000,-167.32,0.00015447,2]
[426514944,1782508240000,-177.91,0.00017197,2]
[426514949,1782508240000,-177.91,0.00019346,2]
[426514950,1782508240000,-161.82,0.00019411,2]
[426514985,1782508240000,-2476.75180422,0.000233,2]
[426514945,1782508240000,-161.82,0.00017254,2]
[426514947,1782508240000,-695.68990907,0.00018114,2]
[426514948,1782508240000,-686.31,0.00018614,2]
[426514951,1782508240000,-1185.90615883,0.00019807,2]
[426514952,1782508240000,-271.0,0.0002,2]
[426514954,1782508240000,-168.0,0.0002,2]
[426514953,1782508240000,-158.0,0.0002,2]
[426514955,1782508240000,-204.0,0.0002,2]
[426514959,1782508240000,-151.0,0.00020675,2]
[426514960,1782508240000,-151.0,0.00020675,2]
[426514946,1782508240000,-1185.90615883,0.00017351,2]
[426514986,1782508240000,-4283.67137171,0.00023328,2]
[426514958,1782508240000,-151.0,0.00020675,2]
[426514987,1782508240000,-271.0,0.00024,2]
[426515014,1782508240000,-151.08,0.000274,7]
[426515015,1782508240000,-158.05,0.000274,7]
[426515017,1782508240000,-500.0,0.000275,7]
[426515016,1782508240000,-151.0,0.000274,7]
[426515013,1782508240000,-151.0,0.00027397,2]
[426515018,1782508240000,-695.68990907,0.00027615,2]
[426515021,1782508240000,-500.0,0.00028298,20]
[426515024,1782508240000,-500.0,0.00028298,20]
[426515025,1782508240000,-500.0,0.00028298,20]
[426515005,1782508240000,-551.87,0.00025786,2]
[426515019,1782508240000,-328.48,0.00028291,2]
[426515020,1782508240000,-500.0,0.00028298,20]
[426515026,1782508240000,-500.0,0.00028298,20]
[426515027,1782508240000,-500.0,0.00028298,20]
[426515029,1782508240000,-500.0,0.00028298,20]
[426515030,1782508240000,-500.0,0.00028298,20]
[426515028,1782508240000,-500.0,0.00028298,20]
[426515032,1782508240000,-500.0,0.00028298,20]
[426515033,1782508240000,-500.0,0.00028298,20]
[426514984,1782508240000,-5700.0,0.00023,3]
[426515023,1782508240000,-500.0,0.00028298,20]
[426515006,1782508240000,-224.09450299,0.00026279,2]
[426515022,1782508240000,-500.0,0.00028298,20]
[426515007,1782508240000,-197.33904975,0.00026279,2]
[426514988,1782508240000,-164.0,0.00024,2]
[426515012,1782508240000,-219.58928663,0.00027397,2]
[426514990,1782508240000,-695.68990907,0.00024448,2]
[426514989,1782508240000,-204.0,0.00024,2]
[426514991,1782508240000,-192.18,0.00024658,2]
[426514993,1782508240000,-1185.90615883,0.00024719,2]
[426514995,1782508240000,-219.0,0.00025,2]
[426514996,1782508240000,-459.6456336,0.00025234,14]
[426514994,1782508240000,-283.0,0.00025,2]
[426514997,1782508240000,-166.56,0.00025749,2]
[426514998,1782508240000,-150.99,0.00025786,2]
[426514992,1782508240000,-195.87,0.00024658,2]
[426515003,1782508240000,-299.99,0.00025786,12]
[426515001,1782508240000,-9999.99,0.00025786,2]
[426515002,1782508240000,-9999.99,0.00025786,2]
[426515000,1782508240000,-9999.99,0.00025786,2]
[426515004,1782508240000,-4837.7,0.00025786,2]
[426515009,1782508240000,-156.93394852,0.0002628,2]
[426515008,1782508240000,-160.51414605,0.0002628,2]
[426514999,1782508240000,-1957.1,0.00025786,2]
[426515010,1782508240000,-1185.90615883,0.00027176,2]
[426515011,1782508240000,-165.46973059,0.00027297,2]
[426515065,1782508241000,-161.0,0.00029619,30]
[426515074,1782508241000,-153.0,0.00030614,30]
[426515076,1782508241000,-158.0,0.00030614,30]
[426515073,1782508241000,-271.0,0.00030614,30]
[426515071,1782508241000,-448.723,0.00030535,26]
[426515072,1782508241000,-152.0,0.00030611,30]
[426515068,1782508241000,-182.20233248,0.00029726,2]
[426515066,1782508241000,-151.0,0.00029619,30]
[426515064,1782508241000,-204.0,0.00029619,30]
[426515067,1782508241000,-1185.90615883,0.00029632,2]
[426515075,1782508241000,-153.0,0.00030614,30]
[426515069,1782508241000,-400.01468784,0.00029789,2]
[426515070,1782508241000,-158.05,0.000298,7]
[426515083,1782508241000,-151.0,0.00030619,30]
[426515080,1782508241000,-161.0,0.00030614,30]
[426515079,1782508241000,-153.0,0.00030614,30]
[426515081,1782508241000,-204.0,0.00030619,30]
[426515078,1782508241000,-156.0,0.00030614,30]
[426515082,1782508241000,-161.0,0.00030619,30]
[426515084,1782508241000,-704.55736298,0.00030628,2]
[426515086,1782508241000,-151.08,0.000307,7]
[426515087,1782508241000,-695.68990907,0.00030782,2]
[426515085,1782508241000,-61635.0,0.00030638,20]
[426515088,1782508241000,-1000.0,0.00031,7]
[426515063,1782508241000,-161.0,0.00029614,30]
[426515089,1782508241000,-151.0,0.00031507,7]
[426515077,1782508241000,-157.0,0.00030614,30]
[426515061,1782508241000,-156.0,0.00029614,30]
[426515039,1782508241000,-271.0,0.00028614,30]
[426515059,1782508241000,-158.0,0.00029614,30]
[426515090,1782508241000,-152.0,0.00031611,30]
[426515036,1782508241000,-415.07396016,0.00028298,20]
[426515038,1782508241000,-152.0,0.00028611,30]
[426515034,1782508241000,-500.0,0.00028298,20]
[426515035,1782508241000,-500.0,0.00028298,20]
[426515037,1782508241000,-3888.04,0.00028604,10]
[426515043,1782508241000,-153.0,0.00028614,30]
[426515041,1782508241000,-153.0,0.00028614,30]
[426515042,1782508241000,-158.0,0.00028614,30]
[426515040,1782508241000,-153.0,0.00028614,30]
[426515044,1782508241000,-157.0,0.00028614,30]
[426515046,1782508241000,-153.0,0.00028614,30]
[426515062,1782508241000,-153.0,0.00029614,30]
[426515047,1782508241000,-161.0,0.00028614,30]
[426515049,1782508241000,-161.0,0.00028619,30]
[426515045,1782508241000,-156.0,0.00028614,30]
[426515050,1782508241000,-151.0,0.00028619,30]
[426515051,1782508241000,-216.42324807,0.00028633,2]
[426515052,1782508241000,-1420.0,0.00029,2]
[426515056,1782508241000,-153.0,0.00029614,30]
[426515054,1782508241000,-152.0,0.00029611,30]
[426515053,1782508241000,-720.8,0.00029349,2]
[426515055,1782508241000,-271.0,0.00029614,30]
[426515057,1782508241000,-153.0,0.00029614,30]
[426515060,1782508241000,-157.0,0.00029614,30]
[426515058,1782508241000,-158.0,0.00029614,30]
[426515048,1782508241000,-204.0,0.00028619,30]
[426515091,1782508241000,-271.0,0.00031614,30]
[426515134,1782508241000,-156.0,0.00033614,30]
[426515093,1782508241000,-153.0,0.00031614,30]
[426515125,1782508241000,-1500.0,0.00033515,10]
[426515127,1782508241000,-640.61,0.00033591,14]
[426515129,1782508241000,-152.0,0.00033611,30]
[426515092,1782508241000,-153.0,0.00031614,30]
[426515126,1782508241000,-150.0,0.00033575,30]
[426515128,1782508241000,-50000.0,0.000336,30]
[426515131,1782508241000,-153.0,0.00033614,30]
[426515132,1782508241000,-153.0,0.00033614,30]
[426515133,1782508241000,-158.0,0.00033614,30]
[426515135,1782508241000,-157.0,0.00033614,30]
[426515136,1782508241000,-166.0,0.00033614,30]
[426515138,1782508241000,-151.0,0.00033619,30]
[426515123,1782508241000,-193.97,0.00033272,120]
[426515137,1782508241000,-204.0,0.00033619,30]
[426515139,1782508241000,-5800.0,0.00033658,2]
[426515142,1782508241000,-502.0,0.00034239,2]
[426515143,1782508241000,-1500.0,0.000344,7]
[426515140,1782508241000,-61635.0,0.00033668,20]
[426515141,1782508241000,-695.68990907,0.00033949,2]
[426515146,1782508241000,-159.0,0.00034611,30]
[426515147,1782508241000,-271.0,0.00034614,30]
[426515145,1782508241000,-1185.90615883,0.00034544,2]
[426515149,1782508241000,-160.0,0.00034614,30]
[426515148,1782508241000,-153.0,0.00034614,30]
[426515151,1782508241000,-156.0,0.00034614,30]
[426515150,1782508241000,-158.0,0.00034614,30]
[426515144,1782508241000,-150.0,0.00034459,120]
[426515124,1782508241000,-531.15,0.00033293,120]
[426515130,1782508241000,-271.0,0.00033614,30]
[426515120,1782508241000,-61635.0,0.00032658,20]
[426515094,1782508241000,-158.0,0.00031614,30]
[426515100,1782508241000,-161.0,0.00031619,30]
[426515098,1782508241000,-161.0,0.00031614,30]
[426515096,1782508241000,-156.0,0.00031614,30]
[426515097,1782508241000,-153.0,0.00031614,30]
[426515095,1782508241000,-157.0,0.00031614,30]
[426515099,1782508241000,-204.0,0.00031619,30]
[426515101,1782508241000,-151.0,0.00031619,30]
[426515122,1782508241000,-5528.0,0.000332,5]
[426515104,1782508241000,-150.0,0.00031808,30]
[426515103,1782508241000,-4283.67137171,0.00031708,4]
[426515106,1782508241000,-151.0,0.00032143,7]
[426515105,1782508241000,-1185.90615883,0.00032088,2]
[426515111,1782508241000,-153.0,0.00032614,30]
[426515102,1782508241000,-61635.0,0.00031648,20]
[426515112,1782508241000,-158.0,0.00032614,30]
[426515107,1782508241000,-200.0,0.00032293,2]
[426515119,1782508241000,-151.0,0.00032619,30]
[426515116,1782508241000,-161.0,0.00032614,30]
[426515117,1782508241000,-204.0,0.00032619,30]
[426515118,1782508241000,-163.0,0.00032619,30]
[426515115,1782508241000,-153.0,0.00032614,30]
[426515121,1782508241000,-150.0,0.00032692,30]
[426515114,1782508241000,-156.0,0.00032614,30]
[426515108,1782508241000,-152.0,0.00032611,30]
[426515109,1782508241000,-271.0,0.00032614,30]
[426515113,1782508241000,-167.0,0.00032614,30]
[426515110,1782508241000,-153.0,0.00032614,30]
[426515162,1782508242000,-672.0,0.00035032,5]
[426515161,1782508242000,-204.89,0.0003503,30]
[426515159,1782508242000,-502.0,0.00034902,2]
[426515160,1782508242000,-166.56,0.00035005,2]
[426515158,1782508242000,-237.95741026,0.000349,120]
[426515154,1782508242000,-640.61,0.00034666,14]
[426515156,1782508242000,-1665.0,0.00034855,10]
[426515153,1782508242000,-151.0,0.00034619,30]
[426515152,1782508242000,-204.0,0.00034619,30]
[426515163,1782508242000,-666.0,0.00035118,5]
[426515157,1782508242000,-192.27096766,0.000349,120]
[426515165,1782508242000,-172.22049566,0.000352,30]
[426515155,1782508242000,-61635.0,0.00034678,20]
[426515169,1782508242000,-1041.47618655,0.00035276,2]
[426515175,1782508242000,-265.44,0.00035354,30]
[426515177,1782508242000,-496413.63383565,0.00035355,120]
[426515172,1782508242000,-153.62,0.0003535,2]
[426515176,1782508242000,-265.81,0.00035354,30]
[426515174,1782508242000,-498.75,0.00035351,30]
[426515164,1782508242000,-172.22049567,0.000352,30]
[426515170,1782508242000,-212.75293919,0.00035276,2]
[426515171,1782508242000,-150.0,0.00035342,120]
[426515167,1782508242000,-169.68077675,0.0003524,30]
[426515173,1782508242000,-636.34,0.00035351,30]
[426515168,1782508242000,-169.68077674,0.0003524,30]
[426515166,1782508242000,-172.22049566,0.000352,30]
[426515182,1782508243000,-166.56,0.00029998,2]
[426515181,1782508243000,-151.0,0.00017551,2]
[426515183,1782508243000,-4425.72922369,0.00035355,120]
[426515184,1782508243000,-288.0687676,0.00035355,120]
[426515196,1782508245000,-267.37,0.00035354,30]
[426515198,1782508245000,-111.95027978,0.00035355,120]
[426515204,1782508246000,-2957.74487183,0.00035355,120]
[426515202,1782508246000,-151.0,0.00017551,2]
[426515203,1782508246000,-10318.34,0.00035355,120]
[426515208,1782508248000,500.0,0.00037239,120]
[426515207,1782508248000,500.0,0.00037239,120]
[426515206,1782508248000,500.0,0.00037239,120]
[426515211,1782508249000,500.0,0.00037239,120]
[426515210,1782508249000,500.0,0.00037239,120]
[426515209,1782508249000,500.0,0.00037239,120]
[426515212,1782508250000,584.96729556,0.00037239,120]
[426515213,1782508262000,1000.0,0.00037239,120]
[426515218,1782508752000,-150.0,0.0001799,2]
[426515219,1782508760000,214.46,0.00028405,120]
[426515221,1782508832000,359.42078982,0.00014999,2]
[426515227,1782508860000,152.0,0.0002498,120]
[426515226,1782508860000,152.0,0.0002498,120]
[426515225,1782508860000,152.0,0.0002498,120]
[426515230,1782508890000,152.0,0.0002498,120]
[426515229,1782508890000,152.0,0.0002498,120]
[426515228,1782508890000,152.0,0.0002498,120]
[426515231,1782508898000,115194.0656,0.00027961,120]
[426515234,1782508920000,251.09155477,0.0002498,120]
[426515236,1782509005000,470.15,0.00031135,120]
[426515235,1782509005000,470.15,0.00027675,120]
[426515237,1782509183000,-140.57921018,0.00014999,2]
[426515238,1782509183000,-370.42078982,0.00014999,2]
[426515244,1782509351000,-223.0,0.00015299,2]
[426515240,1782509351000,-129.57921018,0.00014999,2]
[426515242,1782509351000,-150.0,0.00015149,2]
[426515243,1782509351000,-163.82,0.00015149,2]
[426515241,1782509351000,-281.49602122,0.00014999,2]
[426515245,1782509351000,-150.0,0.00015318,2]
[426515247,1782509351000,-356.73595985,0.00015699,2]
[426515248,1782509351000,-188.15450059,0.00015699,2]
[426515249,1782509351000,-328.01,0.00015749,2]
[426515250,1782509351000,-345.0,0.00016498,2]
[426515252,1782509351000,-2410.95052561,0.00016499,2]
[426515246,1782509351000,-357.39691055,0.00015637,2]
[426515251,1782509351000,-300.0,0.00016499,2]
[426515256,1782509431000,-1497.83934286,0.00016499,2]
[426515255,1782509431000,-832.02712906,0.00016499,2]
[426515253,1782509431000,-237.01373604,0.00016399,2]
[426515254,1782509431000,-170.13352808,0.00016499,2]
[426515292,1782509432000,-1651.16786948,0.000229,2]
[426515301,1782509432000,-499.99,0.00024174,2]
[426515298,1782509432000,-5183.78,0.00024174,2]
[426515297,1782509432000,-999.99,0.00024174,2]
[426515295,1782509432000,-338.06818243,0.0002398,2]
[426515300,1782509432000,-9999.99,0.00024174,2]
[426515293,1782509432000,-1651.16786948,0.000231,2]
[426515296,1782509432000,-3555.95,0.00024174,2]
[426515291,1782509432000,-151.0,0.00022749,2]
[426515302,1782509432000,-9999.99,0.00024174,2]
[426515290,1782509432000,-151.0,0.00022749,2]
[426515289,1782509432000,-151.0,0.00022749,2]
[426515294,1782509432000,-1128.0,0.0002375,2]
[426515303,1782509432000,-9999.99,0.00024174,2]
[426515306,1782509432000,-199.5,0.00025318,2]
[426515304,1782509432000,-150.99,0.00024174,2]
[426515312,1782509432000,-150.0,0.00027114,2]
[426515309,1782509432000,-500.0,0.00026685,2]
[426515307,1782509432000,-166.66,0.00026262,30]
[426515308,1782509432000,-1602.53,0.00026629,2]
[426515311,1782509432000,-267.76,0.00027058,2]
[426515310,1782509432000,-166.66,0.00026815,30]